[Event "*** SCC Grand Prix: Titled Tuesday Blitz"]
[Site "Chess.com"]
[Date "2020.06.02"]
[Round "9"]
[White "dpopadic"]
[Black "LedakovAlexandr"]
[Result "1/2-1/2"]
[WhiteElo "2343"]
[BlackElo "2479"]
[TimeControl "180+1"]
[EndTime "11:48:33 PDT"]
[Termination "Game drawn by repetition"]

1. e4 {[%clk 0:03:00.9]} 1... Nc6 {[%clk 0:03:00.9]} 2. Nf3 {[%clk 0:02:59.8]}
2... d6 {[%clk 0:03:01.3]} 3. d4 {[%clk 0:02:58.5]} 3... g6 {[%clk 0:03:02.2]}
4. Bb5 {[%clk 0:02:57.5]} 4... Bd7 {[%clk 0:03:01.3]} 5. O-O {[%clk 0:02:55.2]}
5... Bg7 {[%clk 0:03:01.5]} 6. c3 {[%clk 0:02:47.8]} 6... a6 {[%clk 0:03:01.1]}
7. Bxc6 {[%clk 0:02:46.1]} 7... Bxc6 {[%clk 0:03:00.9]} 8. Re1 {[%clk
0:02:46.3]} 8... Nf6 {[%clk 0:03:00.5]} 9. Nbd2 {[%clk 0:02:45.3]} 9... O-O
{[%clk 0:03:00.3]} 10. e5 {[%clk 0:02:40.6]} 10... Nd5 {[%clk 0:02:58.6]} 11. e6
{[%clk 0:02:37.9]} 11... fxe6 {[%clk 0:02:51.5]} 12. Rxe6 {[%clk 0:02:37.6]}
12... Nf4 {[%clk 0:02:49]} 13. Re1 {[%clk 0:02:37]} 13... e5 {[%clk 0:02:45.2]}
14. Ne4 {[%clk 0:02:30.9]} 14... h6 {[%clk 0:02:15.3]} 15. Bxf4 {[%clk
0:02:13.8]} 15... exf4 {[%clk 0:01:59.8]} 16. d5 {[%clk 0:02:08]} 16... Bd7
{[%clk 0:01:58.9]} 17. Nd4 {[%clk 0:02:06.5]} 17... Re8 {[%clk 0:01:54.1]} 18.
f3 {[%clk 0:02:06.4]} 18... Re5 {[%clk 0:01:49.1]} 19. c4 {[%clk 0:02:02.3]}
19... Kh7 {[%clk 0:01:46.1]} 20. Qd2 {[%clk 0:02:00.7]} 20... Qf8 {[%clk
0:01:36.5]} 21. Nf2 {[%clk 0:01:56.5]} 21... Rae8 {[%clk 0:01:33.2]} 22. Re4
{[%clk 0:01:53.7]} 22... Rxe4 {[%clk 0:01:28.5]} 23. Nxe4 {[%clk 0:01:53.5]}
23... Qh8 {[%clk 0:01:27.9]} 24. Rd1 {[%clk 0:01:50.6]} 24... Be5 {[%clk
0:01:25.2]} 25. b3 {[%clk 0:01:48.2]} 25... Qf8 {[%clk 0:01:18.5]} 26. h3 {[%clk
0:01:45.7]} 26... h5 {[%clk 0:01:11.9]} 27. Ng5+ {[%clk 0:01:38.9]} 27... Kh6
{[%clk 0:01:09.5]} 28. Nge6 {[%clk 0:01:36.6]} 28... Qf6 {[%clk 0:00:59.3]} 29.
Nxc7 {[%clk 0:01:26.9]} 29... Rc8 {[%clk 0:00:23.6]} 30. Nce6 {[%clk 0:01:22.4]}
30... b5 {[%clk 0:00:23.4]} 31. Rc1 {[%clk 0:01:11.3]} 31... g5 {[%clk
0:00:19.8]} 32. Qd3 {[%clk 0:01:05]} 32... Bxe6 {[%clk 0:00:12.1]} 33. Nxe6
{[%clk 0:01:00.8]} 33... g4 {[%clk 0:00:12.3]} 34. hxg4 {[%clk 0:00:53]} 34...
hxg4 {[%clk 0:00:13.2]} 35. Kf2 {[%clk 0:00:52.6]} 35... Qh4+ {[%clk 0:00:09.8]}
36. Ke2 {[%clk 0:00:51.9]} 36... Qh2 {[%clk 0:00:07.1]} 37. Rf1 {[%clk
0:00:46.5]} 37... Qxg2+ {[%clk 0:00:03.8]} 38. Rf2 {[%clk 0:00:45.8]} 38...
gxf3+ {[%clk 0:00:03.5]} 39. Qxf3 {[%clk 0:00:45.5]} 39... Qxf3+ {[%clk
0:00:02.1]} 40. Rxf3 {[%clk 0:00:45.4]} 40... bxc4 {[%clk 0:00:03]} 41. Nxf4
{[%clk 0:00:43.1]} 41... c3 {[%clk 0:00:01.7]} 42. Nd3 {[%clk 0:00:37.5]} 42...
c2 {[%clk 0:00:01.5]} 43. Nc1 {[%clk 0:00:37.3]} 43... Kg5 {[%clk 0:00:01.7]}
44. Rf1 {[%clk 0:00:33.2]} 44... Kg4 {[%clk 0:00:01.6]} 45. Kd3 {[%clk
0:00:32.8]} 45... Rc3+ {[%clk 0:00:01.2]} 46. Kd2 {[%clk 0:00:31.8]} 46... Rc5
{[%clk 0:00:02.1]} 47. Kd3 {[%clk 0:00:31.9]} 47... Rxd5+ {[%clk 0:00:02.1]} 48.
Kxc2 {[%clk 0:00:31.8]} 48... Rc5+ {[%clk 0:00:03]} 49. Kd3 {[%clk 0:00:30]}
49... Rd5+ {[%clk 0:00:03.9]} 50. Ke2 {[%clk 0:00:29]} 50... Rc5 {[%clk
0:00:04.8]} 51. Kd3 {[%clk 0:00:26.3]} 51... d5 {[%clk 0:00:04.6]} 52. Ne2
{[%clk 0:00:24.8]} 52... Ra5 {[%clk 0:00:04.5]} 53. a4 {[%clk 0:00:24.1]} 53...
Rc5 {[%clk 0:00:04.6]} 54. Rc1 {[%clk 0:00:23.1]} 54... Rxc1 {[%clk 0:00:03.2]}
55. Nxc1 {[%clk 0:00:23.1]} 55... Kf5 {[%clk 0:00:03.6]} 56. Ne2 {[%clk
0:00:22.3]} 56... Ke6 {[%clk 0:00:03.8]} 57. Nc1 {[%clk 0:00:20.9]} 57... Kd6
{[%clk 0:00:03.8]} 58. b4 {[%clk 0:00:20.5]} 58... Kc6 {[%clk 0:00:03.6]} 59.
Nb3 {[%clk 0:00:20.5]} 59... Bc7 {[%clk 0:00:02.9]} 60. Nd4+ {[%clk 0:00:20.1]}
60... Kd6 {[%clk 0:00:02.6]} 61. Nf5+ {[%clk 0:00:20]} 61... Ke5 {[%clk
0:00:02.7]} 62. Ne7 {[%clk 0:00:18.9]} 62... Kd6 {[%clk 0:00:02.6]} 63. Nf5+
{[%clk 0:00:19]} 63... Ke5 {[%clk 0:00:02.9]} 64. Nd4 {[%clk 0:00:19]} 64... Kd6
{[%clk 0:00:02.8]} 65. Nc2 {[%clk 0:00:18.2]} 65... Ke5 {[%clk 0:00:02.9]} 66.
Ne3 {[%clk 0:00:16.7]} 66... Kd6 {[%clk 0:00:03.1]} 67. Nc2 {[%clk 0:00:15.7]}
67... Ke5 {[%clk 0:00:03.2]} 68. Nd4 {[%clk 0:00:15.7]} 68... Kd6 {[%clk
0:00:03.4]} 1/2-1/2

[Event "*** SCC Grand Prix: Titled Tuesday Blitz"]
[Site "Chess.com"]
[Date "2020.06.02"]
[Round "9"]
[White "PlayChessSimple"]
[Black "JuliaEfremova"]
[Result "1-0"]
[WhiteElo "2530"]
[BlackElo "2260"]
[TimeControl "180+1"]
[EndTime "11:48:34 PDT"]
[Termination "PlayChessSimple won by resignation"]

1. e4 {[%clk 0:03:00.9]} 1... d5 {[%clk 0:02:58]} 2. exd5 {[%clk 0:02:59.1]}
2... Qxd5 {[%clk 0:02:58.4]} 3. Nf3 {[%clk 0:02:58.6]} 3... Nf6 {[%clk
0:02:57.6]} 4. Be2 {[%clk 0:02:58.2]} 4... Bg4 {[%clk 0:02:56.3]} 5. h3 {[%clk
0:02:57.3]} 5... Bh5 {[%clk 0:02:55.6]} 6. d4 {[%clk 0:02:54.5]} 6... Nc6 {[%clk
0:02:54.7]} 7. Be3 {[%clk 0:02:52.9]} 7... O-O-O {[%clk 0:02:53.7]} 8. Nbd2
{[%clk 0:02:48]} 8... Qa5 {[%clk 0:02:37.3]} 9. O-O {[%clk 0:02:45.7]} 9... e6
{[%clk 0:02:34]} 10. c3 {[%clk 0:02:43.7]} 10... Nd5 {[%clk 0:02:25.1]} 11. Nc4
{[%clk 0:02:41.7]} 11... Nxe3 {[%clk 0:02:23.6]} 12. Nxa5 {[%clk 0:02:31.4]}
12... Nxd1 {[%clk 0:02:22.9]} 13. Nxc6 {[%clk 0:02:31.6]} 13... bxc6 {[%clk
0:02:20.3]} 14. Raxd1 {[%clk 0:02:26.6]} 14... c5 {[%clk 0:02:20.1]} 15. Ba6+
{[%clk 0:02:23.7]} 15... Kb8 {[%clk 0:02:19.1]} 16. g4 {[%clk 0:02:21.5]} 16...
Bg6 {[%clk 0:02:17.5]} 17. Ne5 {[%clk 0:02:21.8]} 17... Rd6 {[%clk 0:02:11.4]}
18. dxc5 {[%clk 0:02:04.6]} 18... Rxa6 {[%clk 0:02:07.6]} 19. Rd8+ {[%clk
0:02:04.5]} 19... Kb7 {[%clk 0:02:07.4]} 20. c6+ {[%clk 0:02:03]} 20... Rxc6
{[%clk 0:02:03.9]} 21. Nxc6 {[%clk 0:02:01.8]} 21... Kxc6 {[%clk 0:02:04.8]} 22.
Rfd1 {[%clk 0:01:58.4]} 22... h5 {[%clk 0:02:04]} 23. g5 {[%clk 0:01:46.1]}
23... f6 {[%clk 0:02:02.2]} 24. Rb8 {[%clk 0:01:38.8]} 24... fxg5 {[%clk
0:01:43.3]} 25. Rdd8 {[%clk 0:01:38.5]} 25... Bf5 {[%clk 0:01:39.8]} 26. Rxf8
{[%clk 0:01:37.5]} 26... Rxf8 {[%clk 0:01:40.2]} 27. Rxf8 {[%clk 0:01:37]} 27...
Bxh3 {[%clk 0:01:40.9]} 28. Rh8 {[%clk 0:01:26.4]} 28... h4 {[%clk 0:01:38.5]}
29. Rh5 {[%clk 0:01:17.1]} 29... Bf5 {[%clk 0:01:32.8]} 30. Rxg5 {[%clk
0:01:16.2]} 30... g6 {[%clk 0:01:32.5]} 31. f3 {[%clk 0:00:50.7]} 31... Kd5
{[%clk 0:01:26.4]} 32. Kf2 {[%clk 0:00:50.7]} 32... Kc4 {[%clk 0:01:22.2]} 33.
Ke3 {[%clk 0:00:50.1]} 33... h3 {[%clk 0:01:16.6]} 34. Rg1 {[%clk 0:00:48.1]}
34... e5 {[%clk 0:01:10.5]} 35. Rd1 {[%clk 0:00:42]} 35... c5 {[%clk 0:01:06.2]}
36. Rd8 {[%clk 0:00:36.1]} 36... a5 {[%clk 0:00:55]} 37. Ra8 {[%clk 0:00:32.2]}
37... Kd5 {[%clk 0:00:46.9]} 38. Kf2 {[%clk 0:00:26.9]} 38... Kc4 {[%clk
0:00:43.7]} 39. Rxa5 {[%clk 0:00:25.6]} 39... e4 {[%clk 0:00:41.3]} 40. fxe4
{[%clk 0:00:20.6]} 40... Bxe4 {[%clk 0:00:41.6]} 41. Ra7 {[%clk 0:00:19.3]}
41... Bf5 {[%clk 0:00:31]} 42. Kg3 {[%clk 0:00:17.9]} 42... Kb5 {[%clk
0:00:25.9]} 43. Rc7 {[%clk 0:00:16.4]} 43... Kb6 {[%clk 0:00:26]} 44. Rf7 {[%clk
0:00:15.5]} 44... Bb1 {[%clk 0:00:23.5]} 45. a4 {[%clk 0:00:12.6]} 45... Bf5
{[%clk 0:00:19.4]} 46. Rxf5 {[%clk 0:00:11]} 46... gxf5 {[%clk 0:00:20.3]} 47.
c4 {[%clk 0:00:09.5]} 47... Ka5 {[%clk 0:00:19.9]} 48. b3 {[%clk 0:00:09.4]}
48... Kb4 {[%clk 0:00:18]} 49. Kxh3 {[%clk 0:00:09.1]} 49... Kxb3 {[%clk
0:00:17.6]} 50. a5 {[%clk 0:00:09.4]} 50... Kxc4 {[%clk 0:00:17.9]} 51. a6
{[%clk 0:00:09.7]} 51... Kb3 {[%clk 0:00:18.5]} 52. a7 {[%clk 0:00:09.8]} 52...
c4 {[%clk 0:00:19.4]} 53. a8=Q {[%clk 0:00:09.4]} 53... c3 {[%clk 0:00:19.9]}
54. Qb7+ {[%clk 0:00:08.8]} 54... Ka2 {[%clk 0:00:18.5]} 55. Qa6+ {[%clk
0:00:08.3]} 55... Kb1 {[%clk 0:00:17.4]} 56. Qb5+ {[%clk 0:00:07.4]} 56... Kc1
{[%clk 0:00:17]} 57. Qf1+ {[%clk 0:00:05.4]} 57... Kb2 {[%clk 0:00:16.7]} 58.
Qb5+ {[%clk 0:00:05]} 58... Kc1 {[%clk 0:00:16.6]} 59. Kg3 {[%clk 0:00:04.2]}
59... c2 {[%clk 0:00:15.8]} 60. Kf2 {[%clk 0:00:04.2]} 60... Kd1 {[%clk
0:00:15]} 61. Qd5+ {[%clk 0:00:04.4]} 61... Kc1 {[%clk 0:00:15.2]} 62. Ke2
{[%clk 0:00:04.6]} 62... Kb1 {[%clk 0:00:15.4]} 63. Qb5+ {[%clk 0:00:04.6]}
63... Ka1 {[%clk 0:00:15.5]} 64. Qa4+ {[%clk 0:00:04.2]} 64... Kb1 {[%clk
0:00:15.4]} 65. Qb3+ {[%clk 0:00:04.4]} 65... Kc1 {[%clk 0:00:15.2]} 66. Kd3
{[%clk 0:00:04.6]} 66... Kd1 {[%clk 0:00:15.1]} 67. Qxc2+ {[%clk 0:00:04.7]} 1-0

[Event "*** SCC Grand Prix: Titled Tuesday Blitz"]
[Site "Chess.com"]
[Date "2020.06.02"]
[Round "9"]
[White "CaspiIsrael"]
[Black "Anton_Demchenko"]
[Result "1-0"]
[WhiteElo "2602"]
[BlackElo "2806"]
[TimeControl "180+1"]
[EndTime "11:48:35 PDT"]
[Termination "CaspiIsrael won by resignation"]

1. e4 {[%clk 0:03:00.9]} 1... e5 {[%clk 0:03:00]} 2. Nf3 {[%clk 0:03:00.7]} 2...
Nc6 {[%clk 0:03:00]} 3. d4 {[%clk 0:03:01]} 3... exd4 {[%clk 0:02:59.8]} 4. Nxd4
{[%clk 0:03:01.9]} 4... Nf6 {[%clk 0:02:59.9]} 5. Nc3 {[%clk 0:03:01.7]} 5...
Bb4 {[%clk 0:02:59.4]} 6. Nxc6 {[%clk 0:03:01.5]} 6... dxc6 {[%clk 0:03:00.3]}
7. Bd3 {[%clk 0:03:01.9]} 7... O-O {[%clk 0:02:50.6]} 8. O-O {[%clk 0:03:00.3]}
8... Re8 {[%clk 0:02:51]} 9. Bg5 {[%clk 0:02:53.2]} 9... h6 {[%clk 0:02:50.7]}
10. Bh4 {[%clk 0:02:53.2]} 10... Be7 {[%clk 0:02:06.3]} 11. h3 {[%clk
0:02:26.3]} 11... Nd7 {[%clk 0:01:57.4]} 12. Bg3 {[%clk 0:02:18.9]} 12... Bd6
{[%clk 0:01:55.4]} 13. f4 {[%clk 0:02:16.9]} 13... Bc5+ {[%clk 0:01:16.4]} 14.
Kh2 {[%clk 0:02:13.8]} 14... Bd4 {[%clk 0:01:16.8]} 15. Qf3 {[%clk 0:01:51.3]}
15... Nc5 {[%clk 0:01:14.6]} 16. Rad1 {[%clk 0:01:51]} 16... Bxc3 {[%clk
0:01:05.6]} 17. bxc3 {[%clk 0:01:50.4]} 17... Qe7 {[%clk 0:01:01.1]} 18. Rde1
{[%clk 0:01:39.8]} 18... f6 {[%clk 0:00:54]} 19. f5 {[%clk 0:01:34.8]} 19... Nd7
{[%clk 0:00:52.4]} 20. Bc4+ {[%clk 0:01:17.3]} 20... Kh8 {[%clk 0:00:51.4]} 21.
Bxc7 {[%clk 0:01:11.2]} 21... Ne5 {[%clk 0:00:51.3]} 22. Bxe5 {[%clk 0:01:10.9]}
22... Qxe5+ {[%clk 0:00:52.2]} 23. Qg3 {[%clk 0:01:11.2]} 23... b5 {[%clk
0:00:52.1]} 24. Bf7 {[%clk 0:00:58.1]} 24... Qxg3+ {[%clk 0:00:48.2]} 25. Kxg3
{[%clk 0:00:57.6]} 25... Re7 {[%clk 0:00:49.1]} 26. Bg6 {[%clk 0:00:57.4]} 26...
Bb7 {[%clk 0:00:31.3]} 27. Kf4 {[%clk 0:00:56.3]} 27... c5 {[%clk 0:00:29.9]}
28. g4 {[%clk 0:00:43.2]} 28... Re5 {[%clk 0:00:29.9]} 29. Rf2 {[%clk
0:00:40.7]} 29... Rd8 {[%clk 0:00:29.4]} 30. h4 {[%clk 0:00:39.7]} 30... Kg8
{[%clk 0:00:29.2]} 31. g5 {[%clk 0:00:39.8]} 31... Kf8 {[%clk 0:00:29.1]} 32.
gxh6 {[%clk 0:00:35.3]} 32... gxh6 {[%clk 0:00:30]} 33. Bh5 {[%clk 0:00:35.4]}
33... b4 {[%clk 0:00:29.8]} 34. cxb4 {[%clk 0:00:31.6]} 34... cxb4 {[%clk
0:00:30.1]} 35. Bf3 {[%clk 0:00:32.1]} 35... Bc8 {[%clk 0:00:20.5]} 36. Rd1
{[%clk 0:00:28.7]} 36... Rxd1 {[%clk 0:00:18.7]} 37. Bxd1 {[%clk 0:00:29.6]}
37... Bb7 {[%clk 0:00:19.5]} 38. Bf3 {[%clk 0:00:29.4]} 38... Bc6 {[%clk
0:00:18.6]} 39. Rg2 {[%clk 0:00:27.5]} 39... Be8 {[%clk 0:00:18.7]} 40. Rd2
{[%clk 0:00:27]} 40... Ke7 {[%clk 0:00:18.6]} 41. Rd4 {[%clk 0:00:27]} 41... a5
{[%clk 0:00:18.8]} 42. Rc4 {[%clk 0:00:25.5]} 42... Kd7 {[%clk 0:00:13.8]} 43.
c3 {[%clk 0:00:21.7]} 43... bxc3 {[%clk 0:00:09.1]} 44. Rxc3 {[%clk 0:00:22.6]}
44... Bf7 {[%clk 0:00:09.7]} 45. a3 {[%clk 0:00:22.9]} 45... Kd8 {[%clk
0:00:04.2]} 46. Ke3 {[%clk 0:00:22.7]} 46... Ke7 {[%clk 0:00:04.3]} 47. Kd4
{[%clk 0:00:22.9]} 47... Rb5 {[%clk 0:00:04]} 48. Be2 {[%clk 0:00:22.1]} 48...
Rb1 {[%clk 0:00:02.3]} 49. Bf3 {[%clk 0:00:21.4]} 49... Rb5 {[%clk 0:00:01.6]}
50. Rc5 {[%clk 0:00:20.1]} 50... Rxc5 {[%clk 0:00:01.5]} 51. Kxc5 {[%clk
0:00:21]} 51... a4 {[%clk 0:00:01.5]} 52. Be2 {[%clk 0:00:15.2]} 52... Be8
{[%clk 0:00:02.4]} 53. Bb5 {[%clk 0:00:15]} 53... Bh5 {[%clk 0:00:02.7]} 54.
Bxa4 {[%clk 0:00:14.9]} 54... Bf3 {[%clk 0:00:03.6]} 55. Bc6 {[%clk 0:00:15.5]}
55... Bd1 {[%clk 0:00:03.8]} 56. a4 {[%clk 0:00:14.6]} 56... Be2 {[%clk
0:00:04.3]} 57. a5 {[%clk 0:00:14.5]} 57... Ba6 {[%clk 0:00:05.2]} 58. Kb6
{[%clk 0:00:13.9]} 58... Bd3 {[%clk 0:00:05.3]} 59. Bd5 {[%clk 0:00:13.4]} 59...
Be2 {[%clk 0:00:05.2]} 60. h5 {[%clk 0:00:12.1]} 60... Bd3 {[%clk 0:00:05.1]}
61. a6 {[%clk 0:00:11.9]} 61... Bxa6 {[%clk 0:00:05.7]} 62. Kxa6 {[%clk
0:00:12.3]} 62... Kd6 {[%clk 0:00:06.6]} 63. Kb6 {[%clk 0:00:12.4]} 63... Ke5
{[%clk 0:00:07.5]} 64. Kc5 {[%clk 0:00:12.8]} 64... Kf4 {[%clk 0:00:08.4]} 65.
Kd4 {[%clk 0:00:13.3]} 65... Kg5 {[%clk 0:00:09.3]} 66. Bf7 {[%clk 0:00:13.7]}
66... Kf4 {[%clk 0:00:09.3]} 67. Bg6 {[%clk 0:00:14]} 67... Kg5 {[%clk
0:00:09.8]} 68. e5 {[%clk 0:00:14.4]} 68... fxe5+ {[%clk 0:00:10]} 69. Kxe5
{[%clk 0:00:15.3]} 1-0

[Event "*** SCC Grand Prix: Titled Tuesday Blitz"]
[Site "Chess.com"]
[Date "2020.06.02"]
[Round "9"]
[White "Khazieva_Elza"]
[Black "WonderChampion"]
[Result "1-0"]
[WhiteElo "2272"]
[BlackElo "1981"]
[TimeControl "180+1"]
[EndTime "11:48:38 PDT"]
[Termination "Khazieva_Elza won on time"]

1. e4 {[%clk 0:03:00.9]} 1... c5 {[%clk 0:02:59]} 2. Nf3 {[%clk 0:03:00.8]} 2...
g6 {[%clk 0:02:57.6]} 3. d3 {[%clk 0:03:01]} 3... Bg7 {[%clk 0:02:55.3]} 4. g3
{[%clk 0:03:01.4]} 4... Nc6 {[%clk 0:02:55]} 5. Bg2 {[%clk 0:03:01.7]} 5... e6
{[%clk 0:02:54.1]} 6. O-O {[%clk 0:03:01.8]} 6... Nge7 {[%clk 0:02:54.7]} 7. Re1
{[%clk 0:03:01]} 7... O-O {[%clk 0:02:54.5]} 8. e5 {[%clk 0:03:01.5]} 8... d6
{[%clk 0:02:49.7]} 9. exd6 {[%clk 0:03:01.4]} 9... Qxd6 {[%clk 0:02:50.6]} 10.
Nbd2 {[%clk 0:02:59.5]} 10... Nd5 {[%clk 0:02:49.3]} 11. Nc4 {[%clk 0:02:45.3]}
11... Qc7 {[%clk 0:02:42]} 12. a4 {[%clk 0:02:45.4]} 12... b6 {[%clk 0:02:39.7]}
13. c3 {[%clk 0:02:44.5]} 13... Bb7 {[%clk 0:02:38.9]} 14. a5 {[%clk 0:02:37.2]}
14... Rad8 {[%clk 0:02:29.2]} 15. a6 {[%clk 0:02:25.3]} 15... Bc8 {[%clk
0:02:24.5]} 16. Qe2 {[%clk 0:02:20.5]} 16... Nb8 {[%clk 0:02:12]} 17. Bg5 {[%clk
0:01:55.8]} 17... f6 {[%clk 0:02:04.9]} 18. Bd2 {[%clk 0:01:54.5]} 18... e5
{[%clk 0:01:59.4]} 19. d4 {[%clk 0:01:22.7]} 19... exd4 {[%clk 0:01:53]} 20.
cxd4 {[%clk 0:01:20.5]} 20... cxd4 {[%clk 0:01:49.6]} 21. Nxd4 {[%clk
0:01:17.9]} 21... Bxa6 {[%clk 0:01:40.8]} 22. Qe6+ {[%clk 0:01:10.9]} 22... Qf7
{[%clk 0:01:27]} 23. b3 {[%clk 0:00:19.7]} 23... Nc7 {[%clk 0:01:14.2]} 24.
Qxf7+ {[%clk 0:00:17.4]} 24... Kxf7 {[%clk 0:01:12.5]} 25. Be3 {[%clk
0:00:12.1]} 25... f5 {[%clk 0:00:59.5]} 26. Nf3 {[%clk 0:00:11.9]} 26... Bxa1
{[%clk 0:00:58.1]} 27. Rxa1 {[%clk 0:00:11.5]} 27... Kg8 {[%clk 0:00:48.3]} 28.
Ng5 {[%clk 0:00:10.7]} 28... h6 {[%clk 0:00:45.1]} 29. Nh3 {[%clk 0:00:10.3]}
29... Kh7 {[%clk 0:00:42.8]} 30. Nf4 {[%clk 0:00:10]} 30... Bxc4 {[%clk
0:00:38.6]} 31. bxc4 {[%clk 0:00:09.9]} 31... Nca6 {[%clk 0:00:33.5]} 32. h4
{[%clk 0:00:09.7]} 32... Rfe8 {[%clk 0:00:32.5]} 33. Bb7 {[%clk 0:00:09.4]}
33... Nc5 {[%clk 0:00:30.1]} 34. Bxc5 {[%clk 0:00:09.7]} 34... bxc5 {[%clk
0:00:30.8]} 35. Rxa7 {[%clk 0:00:10.6]} 35... Rd7 {[%clk 0:00:30.1]} 36. Nd5
{[%clk 0:00:10.3]} 36... Rf8 {[%clk 0:00:26.3]} 37. Kg2 {[%clk 0:00:07.7]} 37...
Rff7 {[%clk 0:00:25.5]} 38. Ra8 {[%clk 0:00:05.5]} 38... Rxb7 {[%clk 0:00:22.7]}
39. h5 {[%clk 0:00:06]} 39... g5 {[%clk 0:00:22.1]} 40. f3 {[%clk 0:00:05.5]}
40... Rbd7 {[%clk 0:00:21.9]} 41. Rxb8 {[%clk 0:00:05]} 41... Rb7 {[%clk
0:00:20.6]} 42. Rd8 {[%clk 0:00:05]} 42... Rb2+ {[%clk 0:00:20]} 43. Kh3 {[%clk
0:00:05.1]} 43... f4 {[%clk 0:00:20]} 44. gxf4 {[%clk 0:00:05.1]} 44... Rb3
{[%clk 0:00:16.8]} 45. fxg5 {[%clk 0:00:02.3]} 45... Rbxf3+ {[%clk 0:00:16.2]}
46. Kg2 {[%clk 0:00:02.7]} 46... hxg5 {[%clk 0:00:12.6]} 47. Rd6 {[%clk
0:00:02.3]} 47... R3f5 {[%clk 0:00:11.3]} 48. Ne3 {[%clk 0:00:01.6]} 48... Rf4
{[%clk 0:00:10.7]} 49. Nd5 {[%clk 0:00:01.6]} 49... Rh4 {[%clk 0:00:08.8]} 50.
Kg3 {[%clk 0:00:01.7]} 50... Rxh5 {[%clk 0:00:08.7]} 51. Ne3 {[%clk 0:00:01.9]}
51... Rh1 {[%clk 0:00:04.1]} 52. Kg2 {[%clk 0:00:02.1]} 52... Re1 {[%clk
0:00:03.9]} 53. Ng4 {[%clk 0:00:02.5]} 53... Rc1 {[%clk 0:00:04.2]} 54. Kg3
{[%clk 0:00:02.9]} 54... Kg7 {[%clk 0:00:03.3]} 55. Ne5 {[%clk 0:00:02.7]} 55...
Rc3+ {[%clk 0:00:02.4]} 56. Kg2 {[%clk 0:00:02.8]} 1-0

[Event "*** SCC Grand Prix: Titled Tuesday Blitz"]
[Site "Chess.com"]
[Date "2020.06.02"]
[Round "9"]
[White "Djager97"]
[Black "RestartingChess"]
[Result "1-0"]
[WhiteElo "2388"]
[BlackElo "2483"]
[TimeControl "180+1"]
[EndTime "11:48:39 PDT"]
[Termination "Djager97 won by checkmate"]

1. e4 {[%clk 0:03:00.9]} 1... d5 {[%clk 0:02:59.3]} 2. exd5 {[%clk 0:03:00.9]}
2... Qxd5 {[%clk 0:03:00.2]} 3. Nc3 {[%clk 0:03:00.8]} 3... Qd6 {[%clk
0:02:59.9]} 4. d4 {[%clk 0:03:01.7]} 4... Nf6 {[%clk 0:03:00.1]} 5. Nf3 {[%clk
0:03:01.4]} 5... Nc6 {[%clk 0:02:59.2]} 6. Nb5 {[%clk 0:02:54.4]} 6... Qd8
{[%clk 0:02:59]} 7. d5 {[%clk 0:02:50.7]} 7... Nb4 {[%clk 0:02:52]} 8. c4 {[%clk
0:02:34.2]} 8... a6 {[%clk 0:02:47.4]} 9. Nc3 {[%clk 0:02:32.2]} 9... Bf5 {[%clk
0:02:44.9]} 10. Nd4 {[%clk 0:02:32.1]} 10... Bg6 {[%clk 0:02:37.7]} 11. a3
{[%clk 0:02:31.7]} 11... c5 {[%clk 0:02:37.6]} 12. axb4 {[%clk 0:02:31.7]} 12...
cxd4 {[%clk 0:02:37.4]} 13. Qxd4 {[%clk 0:02:32.6]} 13... e6 {[%clk 0:02:37.6]}
14. Be3 {[%clk 0:02:14.4]} 14... Bxb4 {[%clk 0:02:30.9]} 15. dxe6 {[%clk
0:02:14.4]} 15... Qxd4 {[%clk 0:02:28.3]} 16. exf7+ {[%clk 0:02:03.5]} 16...
Kxf7 {[%clk 0:02:26.5]} 17. Bxd4 {[%clk 0:02:04.4]} 17... Rhe8+ {[%clk 0:02:25]}
18. Be2 {[%clk 0:02:02.2]} 18... Bd3 {[%clk 0:02:17.1]} 19. Be3 {[%clk
0:02:00.2]} 19... Rad8 {[%clk 0:02:08.7]} 20. Bxd3 {[%clk 0:01:55.7]} 20... Rxd3
{[%clk 0:02:06.8]} 21. Ke2 {[%clk 0:01:55.8]} 21... Rd7 {[%clk 0:02:03.5]} 22.
Rhd1 {[%clk 0:01:38.2]} 22... Rc7 {[%clk 0:01:58.8]} 23. Nd5 {[%clk 0:00:55.3]}
23... Rxc4 {[%clk 0:01:49.4]} 24. Nxf6 {[%clk 0:00:39.4]} 24... Kxf6 {[%clk
0:01:43.7]} 25. Rac1 {[%clk 0:00:37.5]} 25... Rec8 {[%clk 0:01:35.5]} 26. Rxc4
{[%clk 0:00:37.1]} 26... Rxc4 {[%clk 0:01:35.7]} 27. Rd7 {[%clk 0:00:37.6]}
27... Rc2+ {[%clk 0:01:34.6]} 28. Kd3 {[%clk 0:00:37.5]} 28... Rxb2 {[%clk
0:01:35.1]} 29. Bd4+ {[%clk 0:00:37.9]} 29... Ke6 {[%clk 0:01:34.6]} 30. Rxb7
{[%clk 0:00:34.4]} 30... Rb1 {[%clk 0:01:19.2]} 31. Rxg7 {[%clk 0:00:21.7]}
31... a5 {[%clk 0:01:12.5]} 32. Rxh7 {[%clk 0:00:21.2]} 32... a4 {[%clk
0:01:10.9]} 33. Ra7 {[%clk 0:00:20.9]} 33... a3 {[%clk 0:01:11]} 34. Kc4 {[%clk
0:00:19.3]} 34... Rb2 {[%clk 0:01:04.5]} 35. h4 {[%clk 0:00:14.1]} 35... Rb1
{[%clk 0:00:56.4]} 36. h5 {[%clk 0:00:13.3]} 36... Bf8 {[%clk 0:00:55.2]} 37. h6
{[%clk 0:00:11.6]} 37... Bxh6 {[%clk 0:00:27.9]} 38. Ra6+ {[%clk 0:00:11.5]}
38... Kf5 {[%clk 0:00:28.1]} 39. Rxh6 {[%clk 0:00:12.4]} 39... Rc1+ {[%clk
0:00:26.2]} 40. Kd3 {[%clk 0:00:10.6]} 40... Rd1+ {[%clk 0:00:22.8]} 41. Kc4
{[%clk 0:00:10.6]} 41... Ke4 {[%clk 0:00:18.2]} 42. Re6+ {[%clk 0:00:10]} 42...
Kf5 {[%clk 0:00:18.4]} 43. Ra6 {[%clk 0:00:09]} 43... Rc1+ {[%clk 0:00:18.6]}
44. Kb3 {[%clk 0:00:08.7]} 44... Rd1 {[%clk 0:00:18.4]} 45. Bc3 {[%clk
0:00:08.7]} 45... Rf1 {[%clk 0:00:18.7]} 46. f3 {[%clk 0:00:06.6]} 46... Kf4
{[%clk 0:00:18.3]} 47. Rxa3 {[%clk 0:00:06.1]} 47... Kg3 {[%clk 0:00:18.4]} 48.
Ra2 {[%clk 0:00:06.4]} 48... Rb1+ {[%clk 0:00:18.3]} 49. Rb2 {[%clk 0:00:06.7]}
49... Rd1 {[%clk 0:00:17.7]} 50. Kc4 {[%clk 0:00:07.1]} 50... Rd7 {[%clk
0:00:17.8]} 51. Bd4 {[%clk 0:00:07.3]} 51... Kf4 {[%clk 0:00:17.9]} 52. Kd3
{[%clk 0:00:06.7]} 52... Rd6 {[%clk 0:00:15.5]} 53. Rb6 {[%clk 0:00:06.7]} 53...
Rd7 {[%clk 0:00:14.9]} 54. Rf6+ {[%clk 0:00:07.2]} 54... Kg3 {[%clk 0:00:15.1]}
55. Rg6+ {[%clk 0:00:07.3]} 55... Kf4 {[%clk 0:00:15.4]} 56. Rg4+ {[%clk
0:00:07.5]} 56... Kf5 {[%clk 0:00:15.7]} 57. Re4 {[%clk 0:00:07.8]} 57... Rb7
{[%clk 0:00:14.6]} 58. g4+ {[%clk 0:00:07.7]} 58... Kg5 {[%clk 0:00:15.1]} 59.
Re5+ {[%clk 0:00:08.1]} 59... Kf4 {[%clk 0:00:15.5]} 60. Rf5+ {[%clk 0:00:07]}
60... Kg3 {[%clk 0:00:16]} 61. g5 {[%clk 0:00:07.5]} 61... Rb3+ {[%clk
0:00:15.2]} 62. Ke4 {[%clk 0:00:07.5]} 62... Rb1 {[%clk 0:00:14.1]} 63. g6
{[%clk 0:00:07.6]} 63... Re1+ {[%clk 0:00:14.4]} 64. Be3 {[%clk 0:00:08.1]}
64... Rb1 {[%clk 0:00:12.9]} 65. Rg5+ {[%clk 0:00:07.9]} 65... Kh4 {[%clk
0:00:12.1]} 66. g7 {[%clk 0:00:08.3]} 66... Rb4+ {[%clk 0:00:11]} 67. Kd3 {[%clk
0:00:07.6]} 67... Rb3+ {[%clk 0:00:08.1]} 68. Kc2 {[%clk 0:00:07.8]} 68... Rxe3
{[%clk 0:00:07.8]} 69. Rg4+ {[%clk 0:00:08.2]} 69... Kh5 {[%clk 0:00:05.6]} 70.
g8=Q {[%clk 0:00:09.1]} 70... Re6 {[%clk 0:00:04.4]} 71. Qg5# {[%clk 0:00:08.6]}
1-0